[Event "*** SCC Grand Prix: Titled Tuesday Blitz"]
[Site "Chess.com"]
[Date "2020.07.14"]
[Round "1"]
[White "Tactictic"]
[Black "WashUntilHoles"]
[Result "0-1"]
[WhiteElo "2378"]
[BlackElo "2713"]
[TimeControl "180+1"]
[EndTime "10:06:07 PDT"]
[Termination "WashUntilHoles won by resignation"]

1. e4 {[%clk 0:03:00.2]} 1... c6 {[%clk 0:02:59.1]} 2. d4 {[%clk 0:02:59.8]}
2... d5 {[%clk 0:03:00]} 3. e5 {[%clk 0:03:00.3]} 3... c5 {[%clk 0:02:59.3]} 4.
dxc5 {[%clk 0:02:59.8]} 4... e6 {[%clk 0:02:59.3]} 5. a3 {[%clk 0:02:59.6]} 5...
Nc6 {[%clk 0:02:58.3]} 6. Nf3 {[%clk 0:02:58.8]} 6... Bxc5 {[%clk 0:02:57.8]} 7.
b4 {[%clk 0:02:58.9]} 7... Bb6 {[%clk 0:02:58.4]} 8. Bb2 {[%clk 0:02:58.1]} 8...
Nge7 {[%clk 0:02:59.3]} 9. Bd3 {[%clk 0:02:58.2]} 9... Ng6 {[%clk 0:02:58.6]}
10. O-O {[%clk 0:02:57.7]} 10... Nf4 {[%clk 0:02:58.5]} 11. c4 {[%clk
0:02:56.8]} 11... O-O {[%clk 0:02:55.8]} 12. Nc3 {[%clk 0:02:36.4]} 12... a6
{[%clk 0:02:55.7]} 13. g3 {[%clk 0:02:31.7]} 13... Nxd3 {[%clk 0:02:55.3]} 14.
Qxd3 {[%clk 0:02:32.4]} 14... dxc4 {[%clk 0:02:27.2]} 15. Qxc4 {[%clk
0:02:33.3]} 15... Bd7 {[%clk 0:02:22.1]} 16. Ne4 {[%clk 0:02:24.1]} 16... Ne7
{[%clk 0:02:11.5]} 17. Rfd1 {[%clk 0:01:44.8]} 17... Nd5 {[%clk 0:02:06.6]} 18.
h4 {[%clk 0:01:18.9]} 18... Bc6 {[%clk 0:02:06.1]} 19. Nd6 {[%clk 0:01:08.6]}
19... Qe7 {[%clk 0:01:57.9]} 20. Nd4 {[%clk 0:01:05.5]} 20... Bxd4 {[%clk
0:01:55]} 21. Rxd4 {[%clk 0:01:02.5]} 21... Rad8 {[%clk 0:01:55]} 22. Rad1
{[%clk 0:00:57.1]} 22... Rd7 {[%clk 0:01:40]} 23. Ne4 {[%clk 0:00:49.3]} 23...
Rfd8 {[%clk 0:01:31.1]} 24. Qb3 {[%clk 0:00:39.3]} 24... Nb6 {[%clk 0:01:20.6]}
25. Nc5 {[%clk 0:00:32.5]} 25... Rxd4 {[%clk 0:01:19.7]} 26. Rxd4 {[%clk
0:00:32.9]} 26... Rxd4 {[%clk 0:01:18.3]} 27. Bxd4 {[%clk 0:00:33.8]} 27... Qd8
{[%clk 0:01:17.3]} 28. Qc3 {[%clk 0:00:14.4]} 28... Qd5 {[%clk 0:01:15.5]} 29.
f3 {[%clk 0:00:11.8]} 29... Nc4 {[%clk 0:01:10.7]} 30. Kf2 {[%clk 0:00:09.6]}
30... b6 {[%clk 0:01:08.5]} 31. Nd3 {[%clk 0:00:06.5]} 0-1

[Event "*** SCC Grand Prix: Titled Tuesday Blitz"]
[Site "Chess.com"]
[Date "2020.07.14"]
[Round "1"]
[White "El_ultimo_Pablo"]
[Black "exoticprincess"]
[Result "0-1"]
[WhiteElo "2400"]
[BlackElo "2779"]
[TimeControl "180+1"]
[EndTime "10:06:08 PDT"]
[Termination "exoticprincess won by resignation"]

1. e4 {[%clk 0:03:00.5]} 1... c6 {[%clk 0:02:58.6]} 2. Nc3 {[%clk 0:02:59.8]}
2... d5 {[%clk 0:02:58.9]} 3. Nf3 {[%clk 0:03:00.3]} 3... Bg4 {[%clk 0:02:59.2]}
4. h3 {[%clk 0:03:00.7]} 4... Bxf3 {[%clk 0:02:59.7]} 5. Qxf3 {[%clk 0:03:01.6]}
5... e6 {[%clk 0:03:00.4]} 6. d4 {[%clk 0:03:01.7]} 6... dxe4 {[%clk 0:02:59.5]}
7. Qxe4 {[%clk 0:03:02.6]} 7... Nf6 {[%clk 0:02:59.2]} 8. Qd3 {[%clk 0:03:02.5]}
8... Nbd7 {[%clk 0:02:59.2]} 9. g3 {[%clk 0:02:58.7]} 9... h5 {[%clk 0:02:57]}
10. Bg5 {[%clk 0:02:51.7]} 10... Qc7 {[%clk 0:02:56.6]} 11. h4 {[%clk
0:02:42.3]} 11... O-O-O {[%clk 0:02:56.1]} 12. Bg2 {[%clk 0:02:36.7]} 12... Kb8
{[%clk 0:02:55.7]} 13. O-O-O {[%clk 0:02:32.2]} 13... g6 {[%clk 0:02:54.4]} 14.
Ne4 {[%clk 0:02:24.5]} 14... Bh6 {[%clk 0:02:54.2]} 15. Bxh6 {[%clk 0:02:18.5]}
15... Rxh6 {[%clk 0:02:55.1]} 16. Nxf6 {[%clk 0:02:14.1]} 16... Nxf6 {[%clk
0:02:56]} 17. Qe3 {[%clk 0:02:09.7]} 17... Rhh8 {[%clk 0:02:54.9]} 18. Rhe1
{[%clk 0:02:09.8]} 18... Ng4 {[%clk 0:02:50]} 19. Qe2 {[%clk 0:02:06.8]} 19...
a6 {[%clk 0:02:50]} 20. Kb1 {[%clk 0:02:06.4]} 20... Ka7 {[%clk 0:02:48.7]} 21.
c3 {[%clk 0:02:04.7]} 21... Rd7 {[%clk 0:02:47.9]} 22. Bf3 {[%clk 0:02:03.6]}
22... Nh6 {[%clk 0:02:47.3]} 23. Qe5 {[%clk 0:02:01]} 23... Qxe5 {[%clk
0:02:45.7]} 24. Rxe5 {[%clk 0:02:01.9]} 24... Rhd8 {[%clk 0:02:44.9]} 25. Rde1
{[%clk 0:02:00.9]} 25... Kb8 {[%clk 0:02:44.6]} 26. Kc2 {[%clk 0:02:00.9]} 26...
Kc7 {[%clk 0:02:44.8]} 27. R5e2 {[%clk 0:02:00.3]} 27... Nf5 {[%clk 0:02:45]}
28. Be4 {[%clk 0:01:58.1]} 28... Nd6 {[%clk 0:02:44.4]} 29. Bg2 {[%clk
0:01:56.6]} 29... a5 {[%clk 0:02:44.7]} 30. a4 {[%clk 0:01:55.5]} 30... Nc4
{[%clk 0:02:44.3]} 31. b3 {[%clk 0:01:49.9]} 31... Nd6 {[%clk 0:02:43.9]} 32.
Re5 {[%clk 0:01:47]} 32... b6 {[%clk 0:02:43.8]} 33. Bf3 {[%clk 0:01:41.3]}
33... Nf5 {[%clk 0:02:43.6]} 34. R1e2 {[%clk 0:01:25.2]} 34... Nd6 {[%clk
0:02:41]} 35. Re1 {[%clk 0:01:23.1]} 35... Nf5 {[%clk 0:02:40.5]} 36. R1e2
{[%clk 0:01:23.3]} 36... Rd6 {[%clk 0:02:40.8]} 37. Bg2 {[%clk 0:01:18.1]} 37...
Ne7 {[%clk 0:02:40]} 38. Bf3 {[%clk 0:01:17.2]} 38... Ng8 {[%clk 0:02:39.7]} 39.
Bg2 {[%clk 0:01:16.7]} 39... Nf6 {[%clk 0:02:39.9]} 40. Bf3 {[%clk 0:01:16.7]}
40... Nd7 {[%clk 0:02:39.9]} 41. R5e3 {[%clk 0:01:16.5]} 41... c5 {[%clk
0:02:40.2]} 42. dxc5 {[%clk 0:01:14.7]} 42... Nxc5 {[%clk 0:02:40.8]} 43. Bg2
{[%clk 0:01:09.1]} 43... R8d7 {[%clk 0:02:37]} 44. Bf3 {[%clk 0:01:07.6]} 44...
Kd8 {[%clk 0:02:37]} 45. Re5 {[%clk 0:01:03.9]} 45... Ke7 {[%clk 0:02:35.7]} 46.
R5e3 {[%clk 0:01:01.3]} 46... Rd8 {[%clk 0:02:35.6]} 47. Re5 {[%clk 0:01:01.5]}
47... Kf6 {[%clk 0:02:27]} 48. R5e3 {[%clk 0:01:01.1]} 48... Rd1 {[%clk
0:02:24.5]} 49. Re5 {[%clk 0:00:52.3]} 49... Ra1 {[%clk 0:02:22.5]} 50. Kb2
{[%clk 0:00:19.8]} 50... Rdd1 {[%clk 0:02:21.4]} 51. Be4 {[%clk 0:00:19.6]}
51... Kxe5 {[%clk 0:02:16]} 52. Bc2+ {[%clk 0:00:16.2]} 52... Kf6 {[%clk
0:02:14.4]} 53. Bxd1 {[%clk 0:00:16.1]} 53... Rxd1 {[%clk 0:02:15.3]} 54. b4
{[%clk 0:00:15]} 54... axb4 {[%clk 0:02:14.5]} 55. cxb4 {[%clk 0:00:15.9]} 55...
Nxa4+ {[%clk 0:02:14.7]} 56. Kb3 {[%clk 0:00:16.6]} 56... b5 {[%clk 0:02:15.2]}
57. Rc2 {[%clk 0:00:16.4]} 57... Rd3+ {[%clk 0:02:14.8]} 58. Ka2 {[%clk
0:00:16.4]} 58... Rf3 {[%clk 0:02:14]} 0-1

[Event "*** SCC Grand Prix: Titled Tuesday Blitz"]
[Site "Chess.com"]
[Date "2020.07.14"]
[Round "1"]
[White "ElCoachRene"]
[Black "Sergey85Rodchenkov"]
[Result "1/2-1/2"]
[WhiteElo "2207"]
[BlackElo "2521"]
[TimeControl "180+1"]
[EndTime "10:06:08 PDT"]
[Termination "Game drawn by repetition"]

1. d4 {[%clk 0:03:00.5]} 1... Nf6 {[%clk 0:02:59.5]} 2. Bf4 {[%clk 0:03:01]}
2... b6 {[%clk 0:02:58.9]} 3. e3 {[%clk 0:03:01.3]} 3... Bb7 {[%clk 0:02:59.1]}
4. Nf3 {[%clk 0:03:01.5]} 4... g6 {[%clk 0:02:58.9]} 5. Nbd2 {[%clk 0:03:01.8]}
5... Bg7 {[%clk 0:02:58.7]} 6. c3 {[%clk 0:03:02.1]} 6... O-O {[%clk 0:02:58.1]}
7. Bd3 {[%clk 0:03:02.5]} 7... d6 {[%clk 0:02:57.9]} 8. Qe2 {[%clk 0:03:02.8]}
8... Nbd7 {[%clk 0:02:57.8]} 9. Ba6 {[%clk 0:03:02.8]} 9... Qc8 {[%clk
0:02:57.2]} 10. Bxb7 {[%clk 0:03:02.3]} 10... Qxb7 {[%clk 0:02:57.5]} 11. h3
{[%clk 0:03:03]} 11... Rfe8 {[%clk 0:02:56.9]} 12. a4 {[%clk 0:03:02.5]} 12...
a6 {[%clk 0:02:55.9]} 13. O-O {[%clk 0:03:01.8]} 13... e5 {[%clk 0:02:55]} 14.
dxe5 {[%clk 0:03:02.7]} 14... dxe5 {[%clk 0:02:55.1]} 15. Bg3 {[%clk 0:03:00.9]}
15... e4 {[%clk 0:02:53.7]} 16. Nd4 {[%clk 0:02:59.9]} 16... c5 {[%clk
0:02:52.8]} 17. Nc2 {[%clk 0:02:50.4]} 17... Ne5 {[%clk 0:02:49]} 18. Bxe5
{[%clk 0:02:46.7]} 18... Rxe5 {[%clk 0:02:48.4]} 19. Nc4 {[%clk 0:02:46.8]}
19... Re6 {[%clk 0:02:45.6]} 20. Rfd1 {[%clk 0:02:45.6]} 20... Qc6 {[%clk
0:02:39.3]} 21. a5 {[%clk 0:02:32.6]} 21... b5 {[%clk 0:02:37.5]} 22. Nb6 {[%clk
0:02:32.4]} 22... Rae8 {[%clk 0:02:35.1]} 23. Rd2 {[%clk 0:02:28.2]} 23... Bf8
{[%clk 0:02:19.8]} 24. Rad1 {[%clk 0:02:25.2]} 24... h5 {[%clk 0:02:16.2]} 25.
b4 {[%clk 0:02:21.8]} 25... h4 {[%clk 0:02:07.7]} 26. Nd7 {[%clk 0:01:53.5]}
26... cxb4 {[%clk 0:01:50.5]} 27. Nxb4 {[%clk 0:01:39.8]} 27... Bxb4 {[%clk
0:01:32.5]} 28. Nxf6+ {[%clk 0:01:33.6]} 28... Rxf6 {[%clk 0:01:29.3]} 29. cxb4
{[%clk 0:01:34.5]} 29... Qc3 {[%clk 0:01:22.4]} 30. Rd4 {[%clk 0:01:32]} 30...
Rc6 {[%clk 0:01:18.2]} 31. Qg4 {[%clk 0:01:27.8]} 31... Rc4 {[%clk 0:01:15.2]}
32. Qxh4 {[%clk 0:01:18.4]} 32... Qc2 {[%clk 0:00:56.4]} 33. Rd8 {[%clk
0:01:14.6]} 33... Rc8 {[%clk 0:00:55.7]} 34. Rxe8+ {[%clk 0:01:10.6]} 34... Rxe8
{[%clk 0:00:55.4]} 35. Rd8 {[%clk 0:01:09.6]} 35... Rxd8 {[%clk 0:00:50.7]} 36.
Qxd8+ {[%clk 0:01:09.3]} 36... Kh7 {[%clk 0:00:51.4]} 37. Qh4+ {[%clk
0:00:59.8]} 37... Kg7 {[%clk 0:00:47.9]} 38. Qe7 {[%clk 0:00:57.3]} 38... Qb1+
{[%clk 0:00:43.8]} 39. Kh2 {[%clk 0:00:56.4]} 39... Qc2 {[%clk 0:00:43.5]} 40.
Qe5+ {[%clk 0:00:55.4]} 40... Kg8 {[%clk 0:00:43.1]} 41. Qe8+ {[%clk 0:00:54.9]}
41... Kg7 {[%clk 0:00:43.3]} 42. Qe5+ {[%clk 0:00:54.9]} 42... Kg8 {[%clk
0:00:43.3]} 43. Qe8+ {[%clk 0:00:54.7]} 43... Kg7 {[%clk 0:00:43.5]} 44. Qe5+
{[%clk 0:00:54.5]} 1/2-1/2

[Event "*** SCC Grand Prix: Titled Tuesday Blitz"]
[Site "Chess.com"]
[Date "2020.07.14"]
[Round "1"]
[White "Mischuk_D"]
[Black "Colombiano07"]
[Result "1-0"]
[WhiteElo "2635"]
[BlackElo "2319"]
[TimeControl "180+1"]
[EndTime "10:06:12 PDT"]
[Termination "Mischuk_D won by resignation"]

1. e4 {[%clk 0:03:00.9]} 1... c5 {[%clk 0:02:56.3]} 2. Nf3 {[%clk 0:03:00.6]}
2... g6 {[%clk 0:02:55.9]} 3. d4 {[%clk 0:03:00.2]} 3... cxd4 {[%clk 0:02:55.9]}
4. Nxd4 {[%clk 0:03:01.1]} 4... Nf6 {[%clk 0:02:56.5]} 5. Nc3 {[%clk 0:03:00.4]}
5... Nc6 {[%clk 0:02:57.1]} 6. Nb3 {[%clk 0:02:58.8]} 6... Bg7 {[%clk
0:02:56.9]} 7. Be2 {[%clk 0:02:58.9]} 7... O-O {[%clk 0:02:54.9]} 8. O-O {[%clk
0:02:58.9]} 8... a5 {[%clk 0:02:51.7]} 9. a4 {[%clk 0:02:58.4]} 9... d6 {[%clk
0:02:51]} 10. Re1 {[%clk 0:02:58.1]} 10... Be6 {[%clk 0:02:48.4]} 11. Bf1 {[%clk
0:02:58]} 11... Nd7 {[%clk 0:02:44.4]} 12. Nd5 {[%clk 0:02:57.5]} 12... Nc5
{[%clk 0:02:42.6]} 13. c3 {[%clk 0:02:54.6]} 13... Re8 {[%clk 0:02:38.1]} 14.
Nxc5 {[%clk 0:02:54.3]} 14... dxc5 {[%clk 0:02:24.2]} 15. Bb5 {[%clk 0:02:54.2]}
15... Rc8 {[%clk 0:02:21.8]} 16. Be3 {[%clk 0:02:53.3]} 16... b6 {[%clk
0:02:14.3]} 17. Nf4 {[%clk 0:02:39.1]} 17... Bd7 {[%clk 0:02:10]} 18. Qe2 {[%clk
0:02:25.2]} 18... Qc7 {[%clk 0:02:06.4]} 19. Rad1 {[%clk 0:02:24.2]} 19... Rcd8
{[%clk 0:02:06.8]} 20. Nd5 {[%clk 0:02:16.4]} 20... Qb8 {[%clk 0:02:04.9]} 21.
Bf4 {[%clk 0:02:15.4]} 21... Be5 {[%clk 0:01:47.4]} 22. Bxe5 {[%clk 0:02:09.3]}
22... Nxe5 {[%clk 0:01:48.3]} 23. Bxd7 {[%clk 0:02:01.7]} 23... Nxd7 {[%clk
0:01:29.1]} 24. Qb5 {[%clk 0:02:00.2]} 24... e6 {[%clk 0:01:24.8]} 25. Ne3
{[%clk 0:01:52]} 25... Nf6 {[%clk 0:01:18.4]} 26. f3 {[%clk 0:01:45.2]} 26...
Rxd1 {[%clk 0:01:14.5]} 27. Rxd1 {[%clk 0:01:46.1]} 27... Rd8 {[%clk 0:01:15]}
28. Re1 {[%clk 0:01:45.9]} 28... Qd6 {[%clk 0:01:08.6]} 29. Nc4 {[%clk
0:01:44.2]} 29... Qd3 {[%clk 0:01:01.1]} 30. Nxb6 {[%clk 0:01:43]} 30... Qxb5
{[%clk 0:00:54.6]} 31. axb5 {[%clk 0:01:42.7]} 31... Rb8 {[%clk 0:00:55.5]} 32.
Nc4 {[%clk 0:01:41.7]} 32... Rxb5 {[%clk 0:00:55.3]} 33. Ra1 {[%clk 0:01:42.3]}
33... Nd7 {[%clk 0:00:44.5]} 34. Rxa5 {[%clk 0:01:42.1]} 34... Rxa5 {[%clk
0:00:44.3]} 35. Nxa5 {[%clk 0:01:41.9]} 35... Kf8 {[%clk 0:00:45.2]} 36. Kf2
{[%clk 0:01:41.7]} 36... Ke7 {[%clk 0:00:45.9]} 37. Ke3 {[%clk 0:01:40.7]} 37...
Kd6 {[%clk 0:00:46.5]} 38. h4 {[%clk 0:01:31.8]} 38... h5 {[%clk 0:00:46.1]} 39.
Kf4 {[%clk 0:01:28.7]} 39... f6 {[%clk 0:00:43.4]} 40. Nc4+ {[%clk 0:01:28.2]}
40... Kc6 {[%clk 0:00:43.3]} 41. e5 {[%clk 0:01:28.6]} 41... f5 {[%clk
0:00:29.2]} 42. Ne3 {[%clk 0:01:27]} 42... Kb5 {[%clk 0:00:21.9]} 43. b3 {[%clk
0:01:26.2]} 1-0

[Event "*** SCC Grand Prix: Titled Tuesday Blitz"]
[Site "Chess.com"]
[Date "2020.07.14"]
[Round "1"]
[White "Mikhail_Golubev"]
[Black "xberli"]
[Result "1-0"]
[WhiteElo "2597"]
[BlackElo "2290"]
[TimeControl "180+1"]
[EndTime "10:06:16 PDT"]
[Termination "Mikhail_Golubev won by resignation"]

1. e4 {[%clk 0:03:00.9]} 1... c5 {[%clk 0:02:59.5]} 2. Nf3 {[%clk 0:03:00.2]}
2... d6 {[%clk 0:02:59.7]} 3. d4 {[%clk 0:03:00.3]} 3... cxd4 {[%clk 0:03:00.6]}
4. Nxd4 {[%clk 0:03:00.3]} 4... Nf6 {[%clk 0:03:01.1]} 5. Nc3 {[%clk 0:03:00]}
5... a6 {[%clk 0:03:01.4]} 6. Bc4 {[%clk 0:02:59.9]} 6... e6 {[%clk 0:03:01.2]}
7. O-O {[%clk 0:02:59.6]} 7... Nbd7 {[%clk 0:03:01.4]} 8. Bxe6 {[%clk
0:02:56.9]} 8... fxe6 {[%clk 0:03:00.2]} 9. Nxe6 {[%clk 0:02:56.5]} 9... Qe7
{[%clk 0:02:45.5]} 10. Nc7+ {[%clk 0:02:52.4]} 10... Kf7 {[%clk 0:02:44.6]} 11.
Nxa8 {[%clk 0:02:49]} 11... b5 {[%clk 0:02:30.4]} 12. Nc7 {[%clk 0:02:45.4]}
12... Bb7 {[%clk 0:02:29.2]} 13. Re1 {[%clk 0:02:29.6]} 13... g6 {[%clk
0:02:23.1]} 14. N3d5 {[%clk 0:02:13.8]} 14... Nxd5 {[%clk 0:02:06.6]} 15. exd5
{[%clk 0:02:05.2]} 15... Qf6 {[%clk 0:02:02.5]} 16. Qe2 {[%clk 0:01:45.5]} 16...
Qe5 {[%clk 0:01:41.1]} 17. Qf3+ {[%clk 0:01:26.7]} 17... Qf6 {[%clk 0:01:35.7]}
18. Qe2 {[%clk 0:01:19.1]} 18... Qe5 {[%clk 0:01:35.2]} 19. Qxe5 {[%clk
0:01:18.8]} 19... Nxe5 {[%clk 0:01:36.1]} 20. Bf4 {[%clk 0:01:16]} 20... Bg7
{[%clk 0:01:33.5]} 21. Ne6 {[%clk 0:01:15.4]} 21... Bf6 {[%clk 0:01:29.1]} 22.
Rad1 {[%clk 0:01:08]} 22... Rc8 {[%clk 0:01:26.9]} 23. c3 {[%clk 0:01:00.2]}
23... Nc4 {[%clk 0:01:22.2]} 24. Re2 {[%clk 0:00:45.3]} 24... a5 {[%clk
0:01:12.4]} 25. Ng5+ {[%clk 0:00:42.4]} 25... Kg7 {[%clk 0:01:11.7]} 26. Ne4
{[%clk 0:00:41.5]} 26... Be7 {[%clk 0:00:51.4]} 27. b3 {[%clk 0:00:39.8]} 27...
Nb6 {[%clk 0:00:44.7]} 28. Bxd6 {[%clk 0:00:30.7]} 1-0

[Event "*** SCC Grand Prix: Titled Tuesday Blitz"]
[Site "Chess.com"]
[Date "2020.07.14"]
[Round "1"]
[White "themind1hunter"]
[Black "secretsuperstar7"]
[Result "1-0"]
[WhiteElo "2501"]
[BlackElo "2121"]
[TimeControl "180+1"]
[EndTime "10:06:16 PDT"]
[Termination "themind1hunter won on time"]

1. e4 {[%clk 0:02:55]} 1... c5 {[%clk 0:02:59.1]} 2. Nf3 {[%clk 0:02:51.5]} 2...
d6 {[%clk 0:02:58.2]} 3. d4 {[%clk 0:02:51.8]} 3... cxd4 {[%clk 0:02:59.1]} 4.
Nxd4 {[%clk 0:02:52.1]} 4... Nf6 {[%clk 0:02:58.9]} 5. Nc3 {[%clk 0:02:52.5]}
5... a6 {[%clk 0:02:58.9]} 6. Be3 {[%clk 0:02:50.2]} 6... e5 {[%clk 0:02:59]} 7.
Nb3 {[%clk 0:02:49.7]} 7... Be6 {[%clk 0:02:59.7]} 8. Qd2 {[%clk 0:02:49.3]}
8... h6 {[%clk 0:02:51.1]} 9. O-O-O {[%clk 0:02:42.6]} 9... Ng4 {[%clk
0:02:45.2]} 10. g3 {[%clk 0:02:32.6]} 10... Nxe3 {[%clk 0:02:44.1]} 11. Qxe3
{[%clk 0:02:32.1]} 11... Nc6 {[%clk 0:02:42]} 12. f4 {[%clk 0:02:27.6]} 12...
Be7 {[%clk 0:02:41.7]} 13. Kb1 {[%clk 0:02:26.1]} 13... Rc8 {[%clk 0:02:14.8]}
14. f5 {[%clk 0:02:08.9]} 14... Bxb3 {[%clk 0:02:14.4]} 15. cxb3 {[%clk
0:02:06.5]} 15... Nd4 {[%clk 0:02:07.6]} 16. h4 {[%clk 0:01:55.9]} 16... Qc7
{[%clk 0:01:58.2]} 17. Bd3 {[%clk 0:01:41.6]} 17... Qc5 {[%clk 0:01:08.3]} 18.
Nd5 {[%clk 0:01:29.1]} 18... Nc6 {[%clk 0:00:33.8]} 19. Qe2 {[%clk 0:01:10.3]}
19... Bd8 {[%clk 0:00:10.5]} 20. Qg4 {[%clk 0:01:07.2]} 20... O-O {[%clk
0:00:06.2]} 21. f6 {[%clk 0:01:06.3]} 21... g6 {[%clk 0:00:05.9]} 22. Qxc8
{[%clk 0:01:04.9]} 22... Ba5 {[%clk 0:00:02.9]} 23. Ne7+ {[%clk 0:00:58.5]}
23... Nxe7 {[%clk 0:00:01.5]} 24. Qxc5 {[%clk 0:00:58.1]} 24... dxc5 {[%clk
0:00:01.4]} 25. fxe7 {[%clk 0:00:59]} 25... Re8 {[%clk 0:00:01.8]} 26. Bc4
{[%clk 0:00:55.9]} 26... Rxe7 {[%clk 0:00:02]} 27. a4 {[%clk 0:00:54]} 1-0

[Event "*** SCC Grand Prix: Titled Tuesday Blitz"]
[Site "Chess.com"]
[Date "2020.07.14"]
[Round "1"]
[White "Margarita2907"]
[Black "AccioChess"]
[Result "0-1"]
[WhiteElo "2090"]
[BlackElo "2479"]
[TimeControl "180+1"]
[EndTime "10:06:16 PDT"]
[Termination "AccioChess won by resignation"]

1. e4 {[%clk 0:03:00.7]} 1... e5 {[%clk 0:02:59.3]} 2. Nf3 {[%clk 0:03:00.2]}
2... Nc6 {[%clk 0:02:59.6]} 3. Bc4 {[%clk 0:02:59.4]} 3... Nf6 {[%clk
0:02:59.1]} 4. d3 {[%clk 0:02:57.6]} 4... Be7 {[%clk 0:02:59.1]} 5. O-O {[%clk
0:02:56.1]} 5... O-O {[%clk 0:02:59.7]} 6. h3 {[%clk 0:02:54.8]} 6... d6 {[%clk
0:02:51.6]} 7. c3 {[%clk 0:02:52.5]} 7... Na5 {[%clk 0:02:47.6]} 8. Bb5 {[%clk
0:02:51]} 8... c5 {[%clk 0:02:48.5]} 9. Re1 {[%clk 0:02:43.9]} 9... a6 {[%clk
0:02:47]} 10. Ba4 {[%clk 0:02:43.3]} 10... b5 {[%clk 0:02:47.6]} 11. Bc2 {[%clk
0:02:43]} 11... Bb7 {[%clk 0:02:48]} 12. Nbd2 {[%clk 0:02:35.9]} 12... Re8
{[%clk 0:02:48.2]} 13. Nf1 {[%clk 0:02:34.6]} 13... Bf8 {[%clk 0:02:48.3]} 14.
Ng3 {[%clk 0:02:33.2]} 14... g6 {[%clk 0:02:48.5]} 15. d4 {[%clk 0:02:30.2]}
15... Bg7 {[%clk 0:02:35.4]} 16. a4 {[%clk 0:02:21.9]} 16... exd4 {[%clk
0:02:24]} 17. cxd4 {[%clk 0:02:20.5]} 17... Nc6 {[%clk 0:02:24.7]} 18. Be3
{[%clk 0:02:07.7]} 18... Nb4 {[%clk 0:02:22.8]} 19. dxc5 {[%clk 0:01:52.7]}
19... dxc5 {[%clk 0:02:10.1]} 20. Bxc5 {[%clk 0:01:49.2]} 20... Nxc2 {[%clk
0:02:09.6]} 21. Qxc2 {[%clk 0:01:48.7]} 21... Rc8 {[%clk 0:02:10.3]} 22. axb5
{[%clk 0:01:35.9]} 22... Nd7 {[%clk 0:02:09.2]} 23. b4 {[%clk 0:01:25.6]} 23...
Bxa1 {[%clk 0:02:08.1]} 24. Rxa1 {[%clk 0:01:26.1]} 24... Nxc5 {[%clk
0:02:08.5]} 25. bxc5 {[%clk 0:01:25]} 25... axb5 {[%clk 0:02:09.4]} 26. Ra7
{[%clk 0:01:08.9]} 26... Rc7 {[%clk 0:01:58.7]} 27. Nd2 {[%clk 0:00:57.9]} 27...
Bxe4 {[%clk 0:01:55.9]} 28. Ndxe4 {[%clk 0:00:42.1]} 28... Rxa7 {[%clk
0:01:55.6]} 29. Qb2 {[%clk 0:00:41.7]} 29... Ra6 {[%clk 0:01:54.8]} 30. Qxb5
{[%clk 0:00:37.1]} 30... Rae6 {[%clk 0:01:53.2]} 31. Nd6 {[%clk 0:00:35]} 31...
Rxd6 {[%clk 0:01:53.1]} 32. cxd6 {[%clk 0:00:33.4]} 32... Re1+ {[%clk
0:01:53.4]} 33. Kh2 {[%clk 0:00:32.4]} 33... Qxd6 {[%clk 0:01:53.9]} 34. Qa5
{[%clk 0:00:24.9]} 34... Rd1 {[%clk 0:01:51]} 35. Qa8+ {[%clk 0:00:19.4]} 35...
Kg7 {[%clk 0:01:50.7]} 36. Qa2 {[%clk 0:00:19.9]} 36... h5 {[%clk 0:01:49]} 37.
Qb2+ {[%clk 0:00:19.8]} 37... Kg8 {[%clk 0:01:46]} 38. h4 {[%clk 0:00:18.7]}
38... Rd4 {[%clk 0:01:44.9]} 39. Qe2 {[%clk 0:00:11.9]} 39... Rxh4+ {[%clk
0:01:43.2]} 40. Kg1 {[%clk 0:00:11.8]} 40... Rd4 {[%clk 0:01:43.6]} 41. Qe8+
{[%clk 0:00:11.4]} 41... Kg7 {[%clk 0:01:42.5]} 42. Qe3 {[%clk 0:00:11]} 42...
Rd1+ {[%clk 0:01:41.5]} 43. Kh2 {[%clk 0:00:09.4]} 43... h4 {[%clk 0:01:41.3]}
44. Qg5 {[%clk 0:00:08.8]} 44... hxg3+ {[%clk 0:01:40.9]} 45. fxg3 {[%clk
0:00:09.3]} 45... Qd4 {[%clk 0:01:40.1]} 0-1

[Event "*** SCC Grand Prix: Titled Tuesday Blitz"]
[Site "Chess.com"]
[Date "2020.07.14"]
[Round "1"]
[White "ferdipy"]
[Black "JosefineHeinemann"]
[Result "0-1"]
[WhiteElo "2320"]
[BlackElo "2637"]
[TimeControl "180+1"]
[EndTime "10:06:20 PDT"]
[Termination "JosefineHeinemann won by resignation"]

1. e4 {[%clk 0:02:59.4]} 1... c5 {[%clk 0:02:57.6]} 2. d4 {[%clk 0:02:59]} 2...
cxd4 {[%clk 0:02:56.9]} 3. c3 {[%clk 0:02:59.6]} 3... Nf6 {[%clk 0:02:56.1]} 4.
e5 {[%clk 0:02:59.6]} 4... Nd5 {[%clk 0:02:55.3]} 5. cxd4 {[%clk 0:03:00.5]}
5... d6 {[%clk 0:02:54.7]} 6. Nf3 {[%clk 0:03:01.4]} 6... Nc6 {[%clk 0:02:53.4]}
7. h3 {[%clk 0:03:00.4]} 7... e6 {[%clk 0:02:49.3]} 8. a3 {[%clk 0:02:57.3]}
8... Be7 {[%clk 0:02:46.8]} 9. Bd3 {[%clk 0:02:53.5]} 9... dxe5 {[%clk 0:02:44]}
10. dxe5 {[%clk 0:02:53.1]} 10... Qc7 {[%clk 0:02:44.5]} 11. O-O {[%clk
0:02:46.8]} 11... Nxe5 {[%clk 0:02:43.8]} 12. Nxe5 {[%clk 0:02:44.9]} 12... Qxe5
{[%clk 0:02:44.7]} 13. Bb5+ {[%clk 0:02:43.4]} 13... Kf8 {[%clk 0:02:44.9]} 14.
Re1 {[%clk 0:02:41.2]} 14... Qd6 {[%clk 0:02:44.8]} 15. b4 {[%clk 0:02:33.8]}
15... Bd7 {[%clk 0:02:40.9]} 16. Bd3 {[%clk 0:02:27.8]} 16... Bf6 {[%clk
0:02:36.9]} 17. Ra2 {[%clk 0:02:27.7]} 17... h5 {[%clk 0:02:29.6]} 18. Be4
{[%clk 0:02:21.2]} 18... Rd8 {[%clk 0:02:23.9]} 19. Rd2 {[%clk 0:02:13.6]} 19...
Qc7 {[%clk 0:02:15.1]} 20. Qf3 {[%clk 0:02:10.9]} 20... Bc6 {[%clk 0:02:11.5]}
21. Rc2 {[%clk 0:02:07.5]} 21... h4 {[%clk 0:02:05.9]} 22. Bd2 {[%clk
0:02:07.2]} 22... a6 {[%clk 0:01:57.6]} 23. Nc3 {[%clk 0:02:00.6]} 23... Ne7
{[%clk 0:01:45.1]} 24. Bf4 {[%clk 0:01:55.2]} 24... Be5 {[%clk 0:01:39.6]} 25.
Bxc6 {[%clk 0:01:51.7]} 25... Nxc6 {[%clk 0:01:35.9]} 26. Bxe5 {[%clk
0:01:43.4]} 26... Nxe5 {[%clk 0:01:36.8]} 27. Qe4 {[%clk 0:01:43.7]} 27... Nc6
{[%clk 0:01:32.9]} 28. b5 {[%clk 0:01:44]} 28... axb5 {[%clk 0:01:29.3]} 29.
Nxb5 {[%clk 0:01:44.7]} 29... Qe7 {[%clk 0:01:29.6]} 30. Rc3 {[%clk 0:01:33]}
30... Rh5 {[%clk 0:01:26.4]} 31. a4 {[%clk 0:01:22.2]} 31... Re5 {[%clk
0:01:23.5]} 32. Qb1 {[%clk 0:01:22.8]} 32... Rxe1+ {[%clk 0:01:21.6]} 33. Qxe1
{[%clk 0:01:23.7]} 33... Qb4 {[%clk 0:01:21.9]} 34. Qa1 {[%clk 0:01:11.8]} 34...
Ra8 {[%clk 0:01:15.1]} 35. Ra3 {[%clk 0:01:08.7]} 35... Kg8 {[%clk 0:01:11.9]}
36. Qd1 {[%clk 0:00:59.2]} 36... Rd8 {[%clk 0:01:07.4]} 37. Qh5 {[%clk
0:00:52.6]} 37... g6 {[%clk 0:01:01.3]} 38. Qf3 {[%clk 0:00:48]} 38... Qe1+
{[%clk 0:00:58]} 39. Kh2 {[%clk 0:00:45.8]} 39... Rd1 {[%clk 0:00:56.3]} 0-1